bitfinex-derivatives/quotes_BTCF0:USTF0_20241110
["timestamp","ask_amount","ask_price","bid_price","bid_amount"]
[1731280748125,0.18776,80627.0,80623.0,0.06197]
[1731280748424,0.249727,80627.0,80624.0,0.18706978]
[1731280748733,0.18776,80627.0,80620.0,0.00011985]
[1731280748929,0.422772,80621.0,80620.0,0.00011985]
[1731280749319,0.794892,80621.0,80620.0,0.00011985]
[1731280749520,0.061986,80602.0,80597.0,0.06199]
[1731280749730,0.3608,80598.0,80591.0,0.00066]
[1731280750027,0.3608,80598.0,80592.0,0.1853218]
[1731280750231,0.061993,80593.0,80592.0,0.1853218]
[1731280750418,0.061993,80593.0,80591.0,0.00066]
[1731280751528,0.37224,80592.0,80591.0,0.00066]
[1731280751728,0.37224,80592.0,80583.0,0.00011151]
[1731280751729,0.062,80584.0,80583.0,0.00011151]
[1731280752031,0.61056,80584.0,80583.0,0.00011151]
[1731280752326,0.062011,80570.0,80560.0,0.062018]
[1731280752522,0.3608,80572.0,80560.0,0.062018]
[1731280752723,0.3608,80565.0,80561.0,0.18572669]
[1731280753139,0.3608,80565.0,80559.0,0.00012051]
[1731280753324,0.18728,80567.0,80566.0,0.062014]
[1731280753721,0.18728,80567.0,80566.0,0.18678859]
[1731280753932,0.18728,80567.0,80559.0,0.00012051]
[1731280754229,0.18728,80567.0,80566.0,0.18578604]
[1731280754637,0.18728,80567.0,80564.0,0.18578604]
[1731280754831,0.18728,80567.0,80566.0,0.18678629]
[1731280755132,0.062017,80562.0,80559.0,0.00012051]
[1731280755329,0.3608,80561.0,80559.0,0.00012051]
[1731280755929,0.062017,80562.0,80559.0,0.00012051]
[1731280756736,0.18728,80567.0,80559.0,0.00012051]
[1731280756737,0.062018,80561.0,80559.0,0.00012051]
[1731280757036,0.3608,80564.0,80559.0,0.00012051]
[1731280758231,0.3608,80564.0,80560.0,0.062018]
[1731280758432,0.3608,80564.0,80562.0,0.062017]
[1731280758822,0.18728,80567.0,80563.0,0.18737551]
[1731280759328,0.18728,80567.0,80559.0,0.00012051]
[1731280759528,0.062018,80561.0,80559.0,0.00012051]
[1731280759732,0.062018,80561.0,80560.0,0.18737551]
[1731280760334,0.062018,80561.0,80559.0,0.00012051]
[1731280763031,0.1098685,80561.0,80559.0,0.00012051]
[1731280763436,0.7332,80560.0,80559.0,0.00012051]
[1731280763638,0.06202,80559.0,80541.0,0.062033]
[1731280763837,0.062026,80551.0,80541.0,0.062033]
[1731280764142,0.062026,80551.0,80541.0,0.24781627]
[1731280764333,0.062026,80551.0,80541.0,0.062033]
[1731280764636,0.062026,80551.0,80542.0,0.18578327]
[1731280765335,0.3608,80553.0,80551.0,0.062025]
[1731280765740,0.3608,80553.0,80552.0,0.18619715]
[1731280765945,0.18828,80560.0,80559.0,0.062019]
[1731280766145,0.3608,80572.0,80552.0,0.54699715]
[1731280766146,0.04932476,80565.0,80552.0,0.54699715]
[1731280766335,0.1874,80569.0,80564.0,0.062015]
[1731280766639,0.1874,80569.0,80565.0,0.18695261]
[1731280768734,0.249412,80569.0,80565.0,0.18695261]
[1731280769038,0.062014,80566.0,80557.0,0.06202]
[1731280769244,0.062014,80566.0,80559.0,0.062019]
[1731280769546,0.3608,80562.0,80560.0,0.18632984]
[1731280769742,0.3608,80562.0,80560.0,0.24834784]
[1731280770140,0.3608,80562.0,80560.0,0.062018]
[1731280770341,0.3608,80562.0,80561.0,0.26248041]
[1731280770740,0.1874,80569.0,80561.0,0.26248041]
[1731280770741,0.1874,80569.0,80566.0,0.062013]
[1731280771137,0.1874,80569.0,80561.0,0.26248041]
[1731280771138,0.47295822,80572.0,80567.0,0.062013]
[1731280771333,0.47295822,80572.0,80570.0,0.06201]
[1731280771334,0.3608,80572.0,80570.0,0.06201]
[1731280771738,0.3608,80572.0,80571.0,0.18634484]
[1731280772452,0.3608,80572.0,80570.0,0.06201]
[1731280773244,0.422809,80572.0,80561.0,0.0771]
[1731280773441,0.422809,80572.0,80566.0,0.062014]
[1731280773634,0.3608,80572.0,80562.0,0.24878939]
[1731280773937,0.3608,80572.0,80567.0,0.18677239]
[1731280773938,0.062012,80569.0,80567.0,0.18677239]
[1731280774134,0.062012,80569.0,80552.0,0.36144]
[1731280774441,0.062012,80569.0,80561.0,0.18555476]
[1731280774653,0.062013,80568.0,80560.0,0.062018]
[1731280774948,0.062013,80568.0,80562.0,0.062017]
[1731280776340,0.062013,80567.0,80562.0,0.062017]
[1731280776542,0.062011,80571.0,80562.0,0.062017]
[1731280776847,0.062011,80571.0,80563.0,0.062016]
[1731280777141,0.3608,80572.0,80570.0,0.062011]
[1731280777343,0.04910556,80576.0,80575.0,0.062007]
[1731280777544,0.1874,80581.0,80578.0,0.062004]
[1731280777849,0.1874,80581.0,80571.0,0.06201]
[1731280778036,0.1874,80581.0,80569.0,0.18739296]
[1731280778037,0.062011,80570.0,80569.0,0.18739296]
[1731280778347,0.062007,80575.0,80562.0,0.062017]
[1731280778544,0.3608,80568.0,80562.0,0.062017]
[1731280778845,0.3608,80568.0,80566.0,0.062014]
[1731280779338,0.03038393,80567.0,80566.0,0.062014]
[1731280779545,0.21778393,80567.0,80566.0,0.062014]
[1731280784644,0.062016,80564.0,80557.0,0.06202]
[1731280784848,0.03038484,80563.0,80552.0,0.36144]
[1731280785042,0.1874,80567.0,80555.0,0.062022]
[1731280785043,0.0924022,80562.0,80555.0,0.062022]
[1731280785346,0.0303852,80561.0,80553.0,0.18564079]
[1731280785551,0.0303852,80561.0,80558.0,0.062019]
[1731280786156,0.03038685,80560.0,80559.0,0.062019]
[1731280791153,0.09240485,80560.0,80555.0,0.062022]
[1731280791354,0.03038685,80559.0,80555.0,0.062022]
[1731280791855,0.03038685,80559.0,80556.0,0.062021]
[1731280794851,0.03038685,80559.0,80541.0,0.00014436]
[1731280794852,0.3608,80557.0,80541.0,0.00014436]
[1731280795055,0.3608,80545.0,80541.0,0.06217736]
[1731280795260,0.3608,80545.0,80544.0,0.18500963]
[1731280795444,0.39119239,80545.0,80542.0,0.24704163]
[1731280795649,0.39119239,80545.0,80542.0,0.062032]
[1731280795650,0.03039239,80544.0,80542.0,0.062032]
[1731280795958,0.03039239,80544.0,80543.0,0.18500963]
[1731280796445,0.062032,80543.0,80541.0,0.00014436]
[1731280796646,0.03039239,80542.0,80541.0,0.00014436]
[1731280797452,0.03039239,80542.0,80541.0,0.24908759]
[1731280797653,0.00014333,80544.0,80543.0,0.062032]
[1731280797858,0.03053607,80544.0,80543.0,0.062032]
[1731280798559,0.03053607,80544.0,80541.0,0.00014436]
[1731280798761,0.00014333,80544.0,80541.0,0.00014436]
[1731280799064,0.00014333,80544.0,80542.0,0.18544858]
[1731280799755,0.00014333,80544.0,80542.0,0.24748058]
[1731280804153,0.00014333,80544.0,80542.0,0.60828058]
[1731280804366,0.00014333,80544.0,80543.0,0.0708]
[1731280804760,0.00014333,80544.0,80543.0,0.25590025]
[1731280806858,0.00014333,80544.0,80543.0,0.61670025]
[1731280809864,0.00014333,80544.0,80543.0,0.54590025]
[1731280810070,0.00014333,80544.0,80541.0,0.00014436]
[1731280810259,0.3608,80542.0,80541.0,0.00014436]
[1731280810464,0.42929358,80542.0,80541.0,0.00014436]
[1731280810661,0.42929358,80542.0,80527.0,0.02894436]
[1731280810963,0.062037,80536.0,80528.0,0.18578063]
[1731280811274,0.11837493,80531.0,80527.0,0.18578063]
[1731280811659,0.54784,80534.0,80526.0,0.062044]
[1731280811865,0.0303978,80533.0,80528.0,0.18578063]
[1731280812065,0.03039667,80532.0,80528.0,0.18578063]
[1731280812270,0.03039667,80532.0,80526.0,0.062044]
[1731280812773,0.03039667,80532.0,80528.0,0.18708813]
[1731280812966,0.03039667,80532.0,80527.0,0.18708813]
[1731280813158,0.03039667,80532.0,80523.0,0.00012242]
[1731280813364,0.03039667,80532.0,80527.0,0.18711327]
[1731280813776,0.03039667,80532.0,80523.0,0.06216942]
[1731280814065,0.03039787,80531.0,80528.0,0.1859181]
[1731280814271,0.03039787,80531.0,80525.0,0.1859181]
[1731280814465,0.03039787,80531.0,80523.0,0.06216942]
[1731280814661,0.06204,80532.0,80526.0,0.1859181]
[1731280814868,0.10990343,80532.0,80526.0,0.1859181]
[1731280815067,0.10990343,80532.0,80524.0,0.062046]
[1731280815261,0.10990343,80532.0,80527.0,0.1865386]
[1731280815769,0.04786343,80532.0,80528.0,0.1865386]
[1731280815967,0.3608,80533.0,80528.0,0.1865386]
[1731280816171,0.3608,80533.0,80523.0,0.06216942]
[1731280816360,0.062042,80530.0,80524.0,0.062046]
[1731280816563,0.40901151,80533.0,80527.0,0.062044]
[1731280816759,0.40901151,80533.0,80531.0,0.06204]
[1731280816960,0.03039783,80532.0,80531.0,0.06204]
[1731280817167,0.11837493,80550.0,80531.0,0.06204]
[1731280817168,0.00014333,80544.0,80542.0,0.062032]
[1731280817367,0.03039595,80543.0,80542.0,0.062032]
[1731280817579,0.00014333,80544.0,80542.0,0.062032]
[1731280817774,0.00014333,80544.0,80542.0,0.24780416]
[1731280823978,0.03039133,80543.0,80542.0,0.24780416]
[1731280824178,0.00014333,80544.0,80542.0,0.24780416]
[1731280825081,0.09242334,80543.0,80538.0,0.36152]
[1731280825282,0.3608,80539.0,80529.0,0.00064]
[1731280825482,0.1405875,80542.0,80519.0,0.3608]
[1731280825483,0.11837493,80536.0,80519.0,0.3608]
[1731280825676,0.03039134,80535.0,80519.0,0.36144]
[1731280825875,0.03039134,80535.0,80534.0,0.062039]
[1731280826074,0.03039134,80536.0,80534.0,0.062039]
[1731280826280,0.3608,80537.0,80535.0,0.062038]
[1731280826571,0.0721,80542.0,80526.0,0.36144]
[1731280826772,0.03039516,80541.0,80533.0,0.3608]
[1731280826980,0.03039516,80540.0,80539.0,0.062034]
[1731280827381,0.0721,80542.0,80539.0,0.062034]
[1731280827785,0.03039429,80541.0,80539.0,0.062034]
[1731280827980,0.03039429,80540.0,80539.0,0.062034]
[1731280828282,0.0721,80542.0,80539.0,0.062034]
[1731280828487,0.03039342,80541.0,80539.0,0.062034]
[1731280828677,0.03039338,80540.0,80537.0,0.11837493]
[1731280828878,0.00014333,80544.0,80543.0,0.062032]
[1731280829083,0.03053541,80544.0,80543.0,0.062032]
[1731280829284,0.0305353,80544.0,80543.0,0.24766368]
[1731280830683,0.0305353,80544.0,80543.0,0.18563168]
[1731280834089,0.03053579,80544.0,80543.0,0.18563168]
[1731280834990,0.00014333,80544.0,80543.0,0.18563168]
[1731280836087,0.00014333,80544.0,80543.0,0.14063168]
[1731280837285,0.00014333,80544.0,80543.0,0.20266368]
[1731280844699,0.00014333,80544.0,80543.0,0.57514368]
[1731280844700,3.3e-07,80544.0,80543.0,0.57514368]
[1731280844888,3.3e-07,80544.0,80543.0,0.93594368]
[1731280845088,3.3e-07,80544.0,80543.0,0.56346368]
[1731280846088,0.03038895,80544.0,80543.0,0.20266368]
[1731280847093,0.03038895,80544.0,80543.0,0.14063168]
[1731280847299,0.062032,80543.0,80537.0,0.062036]
[1731280847505,0.062033,80541.0,80537.0,0.062036]
[1731280847803,0.06848405,80540.0,80538.0,0.18529023]
[1731280848302,0.03038862,80539.0,80538.0,0.18529023]
[1731280848693,3.3e-07,80544.0,80540.0,0.062034]
[1731280848889,0.06848988,80543.0,80540.0,0.062034]
[1731280849102,0.06848988,80542.0,80540.0,0.062034]
[1731280849307,3.3e-07,80544.0,80540.0,0.062034]
[1731280849308,0.06848988,80541.0,80540.0,0.062034]
[1731280850096,0.03039358,80541.0,80540.0,0.24856211]
[1731280850392,0.03039358,80541.0,80540.0,0.062034]
[1731280850592,0.03039358,80541.0,80538.0,0.062035]
[1731280850800,0.03039358,80540.0,80538.0,0.062035]
[1731280851099,0.03039358,80540.0,80529.0,0.3608]
[1731280851100,0.03039358,80539.0,80530.0,0.18652811]
[1731280851293,0.03039358,80539.0,80523.0,0.00012242]
[1731280851294,0.3608,80535.0,80523.0,0.00012242]
[1731280851490,0.03039358,80534.0,80529.0,0.00064]
[1731280851693,0.03039358,80534.0,80530.0,0.062042]
[1731280852099,0.062042,80530.0,80524.0,0.062046]
[1731280852304,0.10379358,80529.0,80524.0,0.062046]
[1731280852604,0.03039358,80528.0,80526.0,0.062044]
[1731280852899,0.03039358,80528.0,80527.0,0.18670533]
[1731280853094,0.0734,80529.0,80528.0,0.062043]
[1731280853392,0.04826783,80537.0,80532.0,0.06204]
[1731280853594,0.2596,80549.0,80542.0,0.062032]
[1731280853795,0.42928969,80543.0,80542.0,0.062032]
[1731280854201,0.3911935,80543.0,80542.0,0.062032]
[1731280854393,0.0303935,80543.0,80542.0,0.062032]
[1731280855000,0.0303935,80543.0,80530.0,0.062041]
[1731280855197,0.0303935,80542.0,80530.0,0.062041]
[1731280855400,0.0303935,80541.0,80535.0,0.18641248]
[1731280855705,0.0303935,80540.0,80530.0,0.062041]
[1731280855908,0.0303935,80539.0,80536.0,0.18641248]
[1731280856107,0.109858,80544.0,80536.0,0.18641248]
[1731280856108,0.0303935,80538.0,80536.0,0.18641248]
[1731280856309,0.0303935,80538.0,80532.0,0.18641248]
[1731280856310,0.047827,80544.0,80534.0,0.062038]
[1731280856609,0.047827,80544.0,80537.0,0.18718258]
[1731280856610,0.09242556,80543.0,80537.0,0.18718258]
[1731280856799,0.03039356,80542.0,80533.0,0.18718258]
[1731280857110,0.03039356,80541.0,80530.0,0.062041]
[1731280857309,0.03039356,80540.0,80534.0,0.18671383]
[1731280857509,0.03039356,80539.0,80533.0,0.18671383]
[1731280857706,0.03039356,80538.0,80535.0,0.18671383]
[1731280857907,0.062032,80543.0,80535.0,0.18671383]
[1731280858210,0.03039327,80542.0,80536.0,0.18620951]
[1731280858411,0.03039327,80541.0,80536.0,0.18620951]
[1731280858702,0.03039327,80540.0,80534.0,0.18620951]
[1731280858911,0.047827,80544.0,80537.0,0.18620951]
[1731280859106,0.047827,80544.0,80535.0,0.18535871]
[1731280859506,0.047827,80544.0,80527.0,0.4321]
[1731280859507,0.062033,80542.0,80534.0,0.18535871]
[1731280859708,0.062033,80542.0,80536.0,0.18535871]
[1731280860007,0.062033,80542.0,80534.0,0.18535871]
[1731280860210,0.062034,80540.0,80534.0,0.54615871]
[1731280860406,0.062034,80540.0,80537.0,0.18632804]
[1731280860602,0.062034,80540.0,80535.0,0.18632804]
[1731280860906,0.11837493,80536.0,80518.0,0.3608]
[1731280861113,0.062044,80527.0,80518.0,0.3608]
[1731280861407,0.06849147,80535.0,80518.0,0.3608]
[1731280861408,0.10039422,80526.0,80518.0,0.3608]
[1731280861612,0.03039422,80526.0,80518.0,0.3608]
[1731280861804,0.062039,80534.0,80525.0,0.54835492]
[1731280862010,0.03039712,80533.0,80525.0,0.61039992]
[1731280862209,0.03039712,80532.0,80527.0,0.062044]
[1731280862510,0.062039,80534.0,80528.0,0.18563015]
[1731280862906,0.03039673,80533.0,80528.0,0.18563015]
[1731280863102,0.06204,80533.0,80528.0,0.18563015]
[1731280863315,0.3608,80536.0,80528.0,0.18563015]
[1731280863614,0.03039699,80535.0,80528.0,0.18563015]
[1731280863806,0.03039699,80534.0,80528.0,0.18563015]
[1731280864008,0.03039636,80533.0,80528.0,0.18563015]
[1731280864208,0.3608,80536.0,80528.0,0.18563015]
[1731280864502,0.07,80542.0,80533.0,0.062039]
[1731280864503,0.0303958,80535.0,80533.0,0.062039]
[1731280864718,0.3608,80543.0,80538.0,0.062035]
[1731280864910,0.03039455,80542.0,80538.0,0.062035]
[1731280865114,0.03039455,80541.0,80539.0,0.18530817]
[1731280865308,0.234027,80544.0,80539.0,0.18530817]
[1731280865309,0.03039326,80540.0,80539.0,0.18530817]
[1731280867729,3.3e-07,80544.0,80543.0,0.062032]
[1731280868023,0.42467752,80566.0,80558.0,0.06202]
[1731280868213,0.42467752,80566.0,80561.0,0.062017]
[1731280868214,0.03038575,80565.0,80561.0,0.062017]
[1731280868408,0.03038575,80564.0,80561.0,0.062017]
[1731280868615,0.03038575,80563.0,80562.0,0.18622099]
[1731280868810,0.03047433,80563.0,80562.0,0.18622099]
[1731280869208,0.03047367,80563.0,80562.0,0.18622099]
[1731280869409,8.858e-05,80563.0,80562.0,0.63552099]
[1731280869617,0.00095,80571.0,80570.0,0.062011]
[1731280869917,0.00095,80571.0,80570.0,0.60794336]
[1731280871817,0.00095,80571.0,80570.0,0.60805562]
[1731280872024,0.00011679,80576.0,80570.0,0.98041562]
[1731280872317,0.00011679,80576.0,80575.0,0.18038193]
[1731280872712,0.00011679,80576.0,80575.0,0.73789448]
[1731280874906,0.00011679,80576.0,80575.0,0.36557448]
[1731280876417,0.00011679,80576.0,80575.0,0.24719955]
[1731280876608,0.00011679,80576.0,80575.0,0.18519255]
[1731280876921,0.00011679,80576.0,80570.0,0.00087226]
[1731280876922,0.00011679,80576.0,80571.0,0.18534509]
[1731280877119,0.062007,80575.0,80571.0,0.18534509]
[1731280877417,0.00011679,80576.0,80575.0,0.18704322]
[1731280877610,0.00011679,80576.0,80571.0,0.18704322]
[1731280877807,0.00011679,80576.0,80575.0,0.18704322]
[1731280878218,0.04945586,80576.0,80572.0,0.18704322]
[1731280878423,0.00011679,80576.0,80575.0,0.18539212]
[1731280878717,0.00011679,80576.0,80574.0,0.24739912]
[1731280878919,0.00011679,80576.0,80575.0,0.18539212]
[1731280886116,0.00011679,80576.0,80575.0,0.54619212]
[1731280890413,0.0742,80596.0,80595.0,0.061992]
[1731280890728,0.0742,80596.0,80595.0,0.72703017]
[1731280891021,0.00186169,80607.0,80603.0,0.061985]
[1731280891226,0.0763,80606.0,80603.0,0.061985]
[1731280891429,0.07125374,80604.0,80603.0,0.24898333]
[1731280891619,0.00015374,80604.0,80603.0,0.60978333]
[1731280896227,0.00015374,80604.0,80603.0,0.18699833]
[1731280896625,0.06213874,80604.0,80602.0,0.18603865]
[1731280896920,0.06213874,80604.0,80603.0,0.18603865]
[1731280897324,0.061985,80603.0,80602.0,0.18576473]
[1731280897524,0.061985,80603.0,80600.0,0.061988]
[1731280897822,0.00015374,80604.0,80602.0,0.24774973]
[1731280898223,0.00015374,80604.0,80602.0,0.061985]
[1731280898430,0.00015374,80604.0,80603.0,0.18543736]
[1731280900528,0.00015374,80604.0,80603.0,0.23507078]
[1731280901526,0.00015374,80604.0,80603.0,0.19007078]
[1731280901928,0.00015374,80604.0,80603.0,0.14043736]
[1731280902136,0.03225892,80604.0,80603.0,0.14043736]
[1731280902720,0.03207597,80604.0,80603.0,0.14043736]
[1731280903029,0.07445374,80604.0,80603.0,0.14043736]
[1731280903228,0.10633792,80604.0,80603.0,0.14043736]
[1731280903734,0.00015374,80604.0,80603.0,0.14043736]
[1731280909631,0.00015374,80604.0,80603.0,0.20242236]
[1731280910533,0.0728,80618.0,80617.0,0.061975]
[1731280910738,0.061968,80626.0,80623.0,0.06197]
[1731280911032,0.1411,80625.0,80623.0,0.06197]
[1731280911238,0.0701,80625.0,80623.0,0.24913559]
[1731280911733,0.07555902,80624.0,80623.0,0.24913559]
[1731280912138,0.00015902,80624.0,80623.0,0.36751052]
[1731280912638,0.00015902,80624.0,80623.0,0.36759743]
[1731280913837,0.00015902,80624.0,80623.0,0.4159462]
[1731280914036,0.00015902,80624.0,80623.0,0.3539762]
[1731280914939,0.00015902,80624.0,80623.0,0.4159462]
[1731280918547,0.0747,80632.0,80623.0,0.4159462]
[1731280918728,0.0747,80632.0,80631.0,0.061964]
[1731280919136,0.0747,80632.0,80631.0,0.24728528]
[1731280919737,0.07479222,80632.0,80631.0,0.24728528]
[1731280920846,0.07479222,80632.0,80631.0,0.36566021]
[1731280922736,9.222e-05,80632.0,80631.0,0.36566021]
[1731280924338,9.222e-05,80632.0,80631.0,0.24728528]
[1731280924539,9.222e-05,80632.0,80631.0,0.36566021]
[1731280928242,9.222e-05,80632.0,80631.0,0.32066021]
[1731280928440,9.222e-05,80632.0,80631.0,0.30369621]
[1731280928945,9.222e-05,80632.0,80631.0,0.36566021]
[1731280929941,0.18043015,80632.0,80630.0,0.00064]
[1731280930249,0.18043015,80632.0,80623.0,8.691e-05]
[1731280930250,0.061968,80626.0,80623.0,8.691e-05]
[1731280930439,0.10862681,80625.0,80623.0,8.691e-05]
[1731280930635,0.03322681,80624.0,80623.0,8.691e-05]
[1731280930836,0.03322681,80624.0,80623.0,0.06205691]
[1731280931141,0.137369,80625.0,80623.0,8.691e-05]
[1731280931344,0.03300194,80624.0,80623.0,8.691e-05]
[1731280931649,0.95058199,80624.0,80602.0,0.0058]
[1731280931840,0.95058199,80624.0,80595.0,0.3608]
[1731280931841,0.3608,80611.0,80595.0,0.3608]
[1731280932149,0.3608,80611.0,80606.0,0.061983]
[1731280932150,0.10266199,80610.0,80606.0,0.061983]
[1731280932342,0.03286199,80609.0,80600.0,0.11837493]
[1731280932541,0.0698,80610.0,80608.0,0.061982]
[1731280932846,0.03216864,80609.0,80608.0,0.061982]
[1731280933047,0.60861,80624.0,80606.0,0.11837493]
[1731280933048,0.3618,80624.0,80607.0,0.061982]
[1731280933250,0.3618,80624.0,80621.0,0.061971]
[1731280933251,0.14515114,80623.0,80621.0,0.061971]
[1731280933442,0.03249029,80622.0,80621.0,0.061971]
[1731280933849,0.03249029,80622.0,80621.0,0.24886907]
[1731280934052,0.03301761,80622.0,80621.0,0.24886907]
[1731280934757,0.0746,80623.0,80613.0,0.061977]
[1731280934758,0.13657,80623.0,80613.0,0.061977]
[1731280934949,0.061971,80622.0,80613.0,0.061977]
[1731280935150,0.061971,80622.0,80615.0,0.18686463]
[1731280935345,0.061971,80622.0,80614.0,0.18686463]
[1731280935649,0.0746,80623.0,80616.0,0.18605526]
[1731280935650,0.061974,80618.0,80616.0,0.18605526]
[1731280935850,0.07077213,80617.0,80609.0,0.06198]
[1731280936155,0.07077311,80616.0,80613.0,0.11837493]
[1731280936451,0.061974,80618.0,80613.0,0.11837493]
[1731280936452,0.03271178,80615.0,80613.0,0.11837493]
[1731280936661,0.03271178,80614.0,80613.0,0.11837493]
[1731280938050,0.0324352,80614.0,80604.0,0.061984]
[1731280938346,0.11837493,80615.0,80606.0,0.061983]
[1731280938347,0.06198,80610.0,80606.0,0.061983]
[1731280938553,0.06198,80610.0,80607.0,0.061982]
[1731280938847,0.06198,80610.0,80607.0,0.24824599]
[1731280939047,0.132881,80609.0,80594.0,0.36144]
[1731280939244,0.0709,80609.0,80596.0,0.16696289]
[1731280939456,0.0709,80609.0,80603.0,0.1851432]
[1731280939457,0.061982,80607.0,80603.0,0.1851432]
[1731280939643,0.03231868,80606.0,80603.0,0.1851432]
[1731280939864,0.10351868,80606.0,80604.0,0.061984]
[1731280940374,0.10351868,80606.0,80605.0,0.1851432]
[1731280941173,0.061986,80603.0,80597.0,0.06199]
[1731280941368,0.47917493,80602.0,80592.0,0.061993]
[1731280941568,0.061994,80592.0,80590.0,0.00093]
[1731280941874,0.062002,80582.0,80577.0,0.062005]
[1731280942167,0.062002,80582.0,80580.0,0.18617103]
[1731280942367,0.3608,80583.0,80580.0,0.18617103]
[1731280942573,0.061996,80590.0,80577.0,0.062005]
[1731280942769,0.3608,80588.0,80577.0,0.062005]
[1731280943074,0.3608,80588.0,80579.0,0.18560688]
[1731280943275,0.3608,80588.0,80578.0,0.18560688]
[1731280943474,0.061999,80586.0,80580.0,0.2483965]
[1731280943867,0.3608,80588.0,80576.0,0.00015486]
[1731280944378,0.061998,80587.0,80580.0,0.1863935]
[1731280944675,0.062002,80581.0,80576.0,0.00015486]
[1731280944975,0.062005,80577.0,80576.0,0.00015486]
[1731280946376,0.062005,80577.0,80557.0,0.3666]
[1731280946377,0.36090294,80580.0,80557.0,0.3666]
[1731280946582,0.95834986,80558.0,80522.0,0.15978855]
[1731280946783,0.6014,80579.0,80509.0,0.02481707]
[1731280946784,0.53864069,80523.0,80509.0,0.02481707]
[1731280946995,0.3608,80511.0,80500.0,0.14840692]
[1731280947275,0.3608,80511.0,80501.0,0.18610889]
[1731280947276,0.3608,80504.0,80501.0,0.18610889]
[1731280947477,0.53864069,80504.0,80502.0,0.00011218]
[1731280947775,0.18432,80503.0,80502.0,0.00011218]
[1731280948181,0.619022,80503.0,80502.0,0.18706324]
[1731280948375,0.619022,80503.0,80466.0,0.0736]
[1731280948376,0.37268,80502.0,80466.0,0.0736]
[1731280948681,0.53864069,80480.0,80466.0,0.0736]
[1731280948887,0.53864069,80480.0,80462.0,0.04962701]
[1731280948888,0.18432,80479.0,80462.0,0.04962701]
[1731280949071,0.3608,80463.0,80454.0,0.0685]
[1731280949383,0.53864069,80456.0,80455.0,0.18659737]
[1731280949581,0.53879182,80456.0,80451.0,0.00014704]
[1731280949784,0.53879182,80456.0,80455.0,0.18551404]
[1731280949981,0.53879182,80456.0,80451.0,0.00014704]
[1731280950485,0.53879182,80456.0,80454.0,0.18551404]
[1731280951000,0.37288,80455.0,80451.0,0.00014704]
[1731280951379,0.37288,80454.0,80448.0,0.04917449]
[1731280951581,0.3608,80449.0,80448.0,0.04917449]
[1731280952087,0.73372,80449.0,80448.0,0.04917449]
[1731280952282,0.3608,80449.0,80448.0,0.04917449]
[1731280952587,0.3608,80449.0,80448.0,0.1869719]
[1731280952883,0.3608,80449.0,80439.0,0.1869719]
[1731280953081,0.40879532,80449.0,80439.0,0.1869719]
[1731280953276,0.3608,80449.0,80438.0,0.00015135]
[1731280953584,0.3608,80449.0,80442.0,0.062109]
[1731280953888,0.3608,80449.0,80443.0,0.18578215]
[1731280954785,0.3608,80449.0,80439.0,0.18653185]
[1731280954986,0.3608,80449.0,80444.0,0.18653185]
[1731280955281,0.3608,80449.0,80440.0,0.18653185]
[1731280955481,0.3608,80449.0,80439.0,0.24864285]
[1731280955689,0.3608,80449.0,80445.0,0.18644875]
[1731280955882,0.3608,80449.0,80438.0,0.00015135]
[1731280955883,0.3608,80449.0,80442.0,0.062109]
[1731280956186,0.3608,80449.0,80446.0,0.18644875]
[1731280956387,0.3608,80449.0,80444.0,0.062108]
[1731280956588,0.3608,80449.0,80447.0,0.18730613]
[1731280956978,0.3608,80449.0,80448.0,1.5]
[1731280957381,0.3608,80449.0,80448.0,1.68730613]
[1731280957581,0.3608,80449.0,80448.0,1.5]
[1731280957776,0.3608,80449.0,80448.0,1.68694468]
[1731280959779,0.36095113,80456.0,80455.0,0.062099]
[1731280960196,0.36095113,80456.0,80455.0,0.24899436]
[1731280962391,0.36095113,80456.0,80455.0,0.18689536]
[1731280962783,0.36095113,80456.0,80454.0,0.187655]
[1731280962993,0.36095113,80456.0,80455.0,0.187655]
[1731280963396,0.36095113,80456.0,80454.0,0.249755]
[1731280963601,0.00140001,80468.0,80464.0,0.062092]
[1731280963786,0.36224,80481.0,80464.0,0.062092]
[1731280963988,0.36224,80481.0,80479.0,0.06208]
[1731280963989,0.3608,80481.0,80479.0,0.06208]
[1731280964294,0.3608,80487.0,80465.0,0.0693]
[1731280964295,0.3608,80480.0,80465.0,0.0693]
[1731280964490,0.3608,80472.0,80470.0,0.062087]
[1731280964798,0.36094259,80472.0,80471.0,0.18661266]
[1731280965181,0.36094259,80472.0,80467.0,0.06209]
[1731280965489,0.36094259,80472.0,80468.0,0.18557895]
[1731280966290,0.36094259,80472.0,80470.0,0.062087]
[1731280966494,0.00014259,80472.0,80470.0,0.062087]
[1731280966687,0.07362379,80487.0,80471.0,0.18625081]
[1731280966892,0.07362379,80487.0,80479.0,0.062081]
[1731280966893,0.02486891,80487.0,80479.0,0.062081]
[1731280967291,0.02486891,80487.0,80467.0,0.3608]
[1731280967292,0.062079,80481.0,80480.0,0.18625081]
[1731280967590,0.36090861,80481.0,80472.0,0.18599814]
[1731280967996,0.36090861,80481.0,80471.0,0.18599814]
[1731280968198,0.36090861,80481.0,80470.0,0.062087]
[1731280968199,0.36090861,80481.0,80473.0,0.18599814]
[1731280968502,0.36090861,80481.0,80472.0,0.18599851]
[1731280968699,0.422885,80474.0,80472.0,0.18599851]
[1731280968992,0.422885,80474.0,80466.0,0.18599851]
[1731280969195,0.3608,80474.0,80473.0,0.18599851]
[1731280969402,0.3608,80474.0,80472.0,0.18599851]
[1731280969697,0.422885,80474.0,80473.0,0.18724626]
[1731280969902,0.422885,80474.0,80470.0,0.18724626]
[1731280969903,0.422885,80474.0,80469.0,0.062088]
[1731280970084,0.422885,80474.0,80447.0,0.4299648]
[1731280970085,0.3608,80474.0,80447.0,0.4299648]
[1731280970290,0.422891,80466.0,80457.0,0.062098]
[1731280970492,0.062093,80463.0,80462.0,0.18724626]
[1731280970696,0.062093,80463.0,80459.0,0.18724626]
[1731280970994,0.062093,80463.0,80458.0,0.1863561]
[1731280971197,0.3608,80459.0,80455.0,0.062099]
[1731280971692,0.3608,80459.0,80456.0,0.18711218]
[1731280971900,0.3608,80459.0,80457.0,0.062097]
[1731280972290,0.3608,80459.0,80458.0,0.18711218]
[1731280973901,0.40913008,80466.0,80458.0,0.18711218]
[1731280973902,0.18404,80473.0,80458.0,0.18711218]
[1731280974106,0.36266449,80476.0,80466.0,0.17784069]
[1731280974397,0.36266449,80476.0,80475.0,0.062084]